bitfinex/quotes_SOLUSD_20241118
["timestamp","ask_amount","ask_price","bid_price","bid_amount"]
[1731965377177,0.09367462,239.66,239.6,10.4339]
[1731965377178,0.09367462,239.64,239.6,18.4351434]
[1731965380164,0.09367462,239.64,239.58,8.0012434]
[1731965380766,0.09367462,239.62,239.53,14.6119]
[1731965380968,0.09367462,239.6,239.54,8.0012434]
[1731965381162,0.21916462,239.6,239.54,8.0012434]
[1731965381376,0.21916462,239.58,239.54,8.0012434]
[1731965381982,0.21916462,239.58,239.55,4.1744]
[1731965386988,0.21916462,239.58,239.54,8.0012434]
[1731965387392,0.21916462,239.58,239.54,12.1758434]
[1731965388373,0.21916462,239.58,239.53,10.4371]
[1731965388374,0.09367462,239.56,239.53,10.4371]
[1731965388574,0.21916462,239.56,239.53,18.4383434]
[1731965390284,0.21916462,239.56,239.52,8.0012434]
[1731965392795,0.21916462,239.54,239.52,8.0012434]
[1731965398297,0.21916462,239.52,239.5,8.0012434]
[1731965398880,0.21916462,239.52,239.48,14.6148]
[1731965399097,0.21916462,239.52,239.5,8.0012434]
[1731965400386,0.21916462,239.52,239.5,12.1765434]
[1731965400700,4.1742,239.57,239.5,12.1765434]
[1731965400701,0.25098,239.6,239.5,14.6137]
[1731965400888,0.25098,239.6,239.53,8.0012434]
[1731965401290,0.09367462,239.57,239.53,8.0012434]
[1731965401483,0.09367462,239.55,239.53,8.0012434]
[1731965401678,0.21916462,239.54,239.53,8.0012434]
[1731965401878,0.12549,239.54,239.53,8.0012434]
[1731965402099,0.09367462,239.55,239.53,8.0012434]
[1731965402282,0.09367462,239.55,239.54,8.0012434]
[1731965402695,0.09367462,239.61,239.54,8.0012434]
[1731965402897,0.09367462,239.59,239.54,8.0012434]
[1731965403501,0.34465462,239.57,239.56,8.0012434]
[1731965404890,0.21916462,239.57,239.56,8.0012434]
[1731965405095,22.17021459,239.65,239.56,8.0012434]
[1731965405096,28.200864,239.64,239.56,8.0012434]
[1731965405397,4.173,239.64,239.59,8.0012434]
[1731965405596,4.1727,239.66,239.59,8.0012434]
[1731965405779,4.1727,239.66,239.52,67.4924736]
[1731965405780,4.1727,239.66,239.61,8.0012434]
[1731965406106,0.09367462,239.65,239.61,8.0012434]
[1731965406480,0.09367462,239.63,239.59,8.0012434]
[1731965406685,0.09367462,239.59,239.56,8.0012434]
[1731965407894,0.09367462,239.59,239.58,8.0012434]
[1731965409489,0.25098,239.64,239.58,12.1750434]
[1731965409690,0.25098,239.64,239.6,8.0012434]
[1731965410802,0.09367462,239.63,239.6,8.0012434]
[1731965411107,0.09367462,239.63,239.62,8.0012434]
[1731965411486,6.4856,239.67,239.62,8.0012434]
[1731965411811,4.1722,239.69,239.62,8.0012434]
[1731965412010,0.09367462,239.68,239.64,8.0012434]
[1731965412501,4.1718,239.71,239.66,8.0012434]
[1731965413195,0.09367462,239.7,239.66,8.0012434]
[1731965413797,0.09367462,239.68,239.66,8.0012434]
[1731965414001,0.21916462,239.68,239.66,8.0012434]
[1731965414308,0.21916462,239.68,239.66,12.1737434]
[1731965414781,15.8363,239.76,239.66,12.1737434]
[1731965414984,15.8363,239.76,239.71,8.0012434]
[1731965415184,0.09367462,239.75,239.71,8.0012434]
[1731965415387,4.1706,239.78,239.71,8.0012434]
[1731965415913,0.09367462,239.77,239.71,8.0012434]
[1731965416884,0.21916462,239.75,239.71,8.0012434]
[1731965417085,0.21916462,239.73,239.71,8.0012434]
[1731965417807,0.21916462,239.75,239.71,8.0012434]
[1731965417982,0.21916462,239.75,239.73,8.0012434]
[1731965418614,0.12549,239.77,239.73,8.0012434]
[1731965418784,0.09367462,239.76,239.73,8.0012434]
[1731965419295,4.1692,239.85,239.75,8.0012434]
[1731965419487,0.09367462,239.84,239.77,8.0012434]
[1731965420502,24.12153862,239.81,239.73,8.0012434]
[1731965421792,24.12153862,239.79,239.73,8.0012434]
[1731965422217,24.12153862,239.79,239.71,8.0012434]
[1731965422391,24.12153862,239.79,239.67,15.7295]
[1731965422392,24.12153862,239.77,239.67,15.7295]
[1731965422593,24.12153862,239.77,239.68,8.0012434]
[1731965422798,24.12153862,239.75,239.68,8.0012434]
[1731965424022,0.21916462,239.73,239.68,8.0012434]
[1731965424210,24.12153862,239.73,239.68,8.0012434]
[1731965426209,4.51605462,239.73,239.68,8.0012434]
[1731965428322,0.34465462,239.71,239.64,18.4332434]
[1731965429522,0.34465462,239.71,239.64,22.6061434]
[1731965429822,0.34465462,239.71,239.66,8.0012434]
[1731965431627,0.34465462,239.71,239.64,10.432]
[1731965431820,4.51635462,239.71,239.66,8.0012434]
[1731965434203,0.34465462,239.69,239.64,8.0012434]
[1731965435317,0.21916462,239.65,239.64,8.0012434]
[1731965437534,0.25098,239.68,239.64,8.0012434]
[1731965437734,0.09367462,239.67,239.64,8.0012434]
[1731965437932,0.09367462,239.67,239.64,12.1741434]
[1731965438236,24.027864,239.7,239.64,8.0012434]
[1731965438237,0.09367462,239.69,239.64,8.0012434]
[1731965440101,0.09367462,239.67,239.64,8.0012434]
[1731965447014,0.09367462,239.67,239.64,12.1740434]
[1731965447212,0.09367462,239.67,239.66,8.0012434]
[1731965447431,30.25291605,239.79,239.7,160.0]
[1731965447633,14.63441605,239.79,239.72,8.0012434]
[1731965447807,0.09367462,239.78,239.72,8.0012434]
[1731965448512,18.80481605,239.79,239.72,8.0012434]
[1731965448823,0.09367462,239.78,239.72,8.0012434]
[1731965449235,0.09367462,239.78,239.64,10.4322]
[1731965449236,0.09367462,239.76,239.64,10.4322]
[1731965449416,0.09367462,239.73,239.66,8.0012434]
[1731965449739,0.34465462,239.73,239.66,8.0012434]
[1731965449936,0.34465462,239.73,239.68,8.0012434]
[1731965450834,0.25098,239.73,239.68,8.0012434]
[1731965451033,0.25098,239.75,239.68,12.1734434]
[1731965451236,0.09367462,239.74,239.68,12.1734434]
[1731965451420,0.12549,239.73,239.68,12.1734434]
[1731965451938,0.12549,239.73,239.7,8.0012434]
[1731965453314,0.12549,239.73,239.7,12.1730434]
[1731965454121,23.776884,239.77,239.72,8.0012434]
[1731965454335,0.25098,239.76,239.72,8.0012434]
[1731965454916,0.12549,239.74,239.72,8.0012434]
[1731965457631,12.80341605,239.79,239.72,12.1726434]
[1731965457819,0.25098,239.78,239.72,12.1726434]
[1731965458254,0.09367462,239.75,239.72,12.1726434]
[1731965458454,0.09367462,239.75,239.74,8.0012434]
[1731965464544,0.09367462,239.75,239.72,8.0012434]
[1731965466138,0.09367462,239.75,239.66,35.4667]
[1731965466139,0.21916462,239.75,239.66,35.4667]
[1731965466370,0.09367462,239.73,239.69,8.0012434]
[1731965466871,0.09367462,239.73,239.7,4.1718]
[1731965467751,0.09367462,239.73,239.7,14.6015]
[1731965468071,0.25098,239.78,239.71,8.0012434]
[1731965468357,0.09367462,239.77,239.73,8.0012434]
[1731965469137,0.09367462,239.77,239.73,12.1724434]
[1731965473764,0.12549,239.78,239.75,8.0012434]
[1731965475965,0.12549,239.83,239.76,4.1708]
[1731965476148,0.25098,239.83,239.76,14.5978]
[1731965476359,0.09367462,239.82,239.76,14.5978]
[1731965476871,0.21916462,239.82,239.76,14.5978]
[1731965479667,0.09367462,239.8,239.76,14.5978]
[1731965479970,0.21916462,239.8,239.76,14.5978]
[1731965480149,0.21916462,239.8,239.76,10.427]
[1731965484842,0.21916462,239.8,239.76,8.0012434]
[1731965490955,0.21916462,239.8,239.73,10.428]
[1731965491150,0.21916462,239.8,239.76,8.0012434]
[1731965491352,0.09367462,239.76,239.7,4.1718]
[1731965491575,0.21916462,239.76,239.72,8.0012434]
[1731965493251,0.21916462,239.76,239.72,12.1727434]
[1731965493651,0.21916462,239.74,239.65,34.6042]
[1731965493884,0.21916462,239.72,239.69,8.0012434]
[1731965497061,0.21916462,239.72,239.69,12.1731434]
[1731965497372,0.21916462,239.72,239.71,8.0012434]
[1731965501357,4.29519,239.82,239.71,22.6019434]
[1731965501570,0.12549,239.8,239.74,8.0012434]
[1731965501757,0.09367462,239.77,239.74,8.0012434]
[1731965501952,4.1697,239.82,239.76,8.0012434]
[1731965502476,0.09367462,239.81,239.76,8.0012434]
[1731965502686,4.1697,239.82,239.76,8.0012434]
[1731965503589,4.26367462,239.81,239.76,8.0012434]
[1731965503777,0.09367462,239.79,239.76,8.0012434]
[1731965503982,0.09367462,239.77,239.76,8.0012434]
[1731965506694,0.09367462,239.78,239.76,8.0012434]
[1731965508781,0.21916462,239.78,239.76,8.0012434]
[1731965516204,0.21916462,239.78,239.76,8.0012434]
[1731965516389,0.21916462,239.76,239.72,8.0012434]
[1731965517370,0.21916462,239.76,239.72,12.1727434]
[1731965518175,0.12549,239.73,239.65,20.0]
[1731965518388,0.21916462,239.72,239.7,8.0012434]
[1731965518808,0.21916462,239.73,239.7,8.0012434]
[1731965519110,0.12549,239.72,239.7,8.0012434]
[1731965522591,10.70921459,239.8,239.7,22.6026434]
[1731965522900,24.027864,239.79,239.74,8.0012434]
[1731965523106,0.09367462,239.78,239.74,8.0012434]
[1731965523309,0.09367462,239.76,239.74,8.0012434]
[1731965523484,0.21916462,239.76,239.74,8.0012434]
[1731965523684,0.34465462,239.75,239.74,8.0012434]
[1731965527833,0.12549,239.77,239.74,12.1722434]
[1731965527987,0.25098,239.79,239.76,8.0012434]
[1731965528316,0.09367462,239.76,239.7,14.6014]
[1731965528497,0.12549,239.75,239.7,18.4309434]
[1731965528827,0.12549,239.75,239.74,8.0012434]
[1731965529034,0.09367462,239.76,239.74,8.0012434]
[1731965529188,0.25098,239.78,239.74,8.0012434]
[1731965529392,0.21916462,239.77,239.74,8.0012434]
[1731965529714,0.12549,239.76,239.74,8.0012434]
[1731965532723,0.12549,239.76,239.72,8.0012434]
[1731965533718,0.12549,239.77,239.72,12.1727434]
[1731965535226,0.12549,239.77,239.7,8.0012434]
[1731965535390,0.21916462,239.74,239.69,8.0012434]
[1731965536419,0.21916462,239.74,239.7,4.1718]
[1731965537917,6.53901459,239.81,239.73,8.0012434]
[1731965538100,0.25098,239.8,239.73,8.0012434]
[1731965538301,0.09367462,239.79,239.73,8.0012434]
[1731965539223,0.09367462,239.79,239.73,12.1725434]
[1731965539405,23.87055862,239.79,239.73,12.1725434]
[1731965539611,0.09367462,239.77,239.73,4.1713]
[1731965539805,0.09367462,239.77,239.71,12.1727434]
[1731965540617,0.09367462,239.77,239.7,10.4297]
[1731965540922,0.09367462,239.77,239.7,14.6015]
[1731965541294,24.027864,239.75,239.7,14.6015]
[1731965541514,0.12549,239.78,239.74,8.0012434]
[1731965541708,0.09367462,239.77,239.74,8.0012434]
[1731965542710,4.26437462,239.77,239.7,18.4309434]
[1731965542918,0.09367462,239.75,239.7,10.4297]
[1731965544002,0.09367462,239.75,239.7,18.4309434]
[1731965544931,0.09367462,239.75,239.7,22.6027434]
[1731965545333,0.12549,239.76,239.72,8.0012434]
[1731965545503,10.70921459,239.8,239.72,8.0012434]
[1731965545705,10.70921459,239.8,239.74,8.0012434]
[1731965545905,0.09367462,239.79,239.74,8.0012434]
[1731965546905,0.09367462,239.77,239.74,8.0012434]
[1731965547118,0.21916462,239.77,239.74,8.0012434]
[1731965547802,6.53901459,239.81,239.76,8.0012434]
[1731965548215,0.09367462,239.8,239.74,14.599]
[1731965548541,4.1698,239.82,239.75,8.0012434]
[1731965548830,0.09367462,239.81,239.75,8.0012434]
[1731965549133,0.34465462,239.81,239.75,12.1720434]
[1731965549928,24.12153862,239.81,239.75,12.1720434]
[1731965552821,28.29153862,239.81,239.75,12.1720434]
[1731965557736,0.34465462,239.81,239.77,8.0012434]
[1731965561941,0.34465462,239.81,239.75,4.1708]
[1731965561942,0.34465462,239.81,239.75,12.1720434]
[1731965562542,4.51465462,239.81,239.75,12.1720434]
[1731965562723,0.21916462,239.79,239.75,12.1720434]
[1731965564753,0.21916462,239.8,239.75,12.1720434]
[1731965565712,23.99604862,239.8,239.75,12.1720434]
[1731965566948,0.21916462,239.8,239.77,8.0012434]
[1731965568446,0.21916462,239.8,239.76,4.1707]
[1731965569239,0.21916462,239.8,239.77,8.0012434]
[1731965570452,6.53901459,239.83,239.77,12.1717434]
[1731965570625,16.79361459,239.84,239.79,8.0012434]
[1731965570829,6.53901459,239.84,239.81,8.0012434]
[1731965571047,6.53901459,239.85,239.81,8.0012434]
[1731965571355,0.09367462,239.85,239.81,8.0012434]
[1731965571526,6.63268921,239.85,239.81,8.0012434]
[1731965571726,0.09367462,239.85,239.81,8.0012434]
[1731965572137,0.21916462,239.85,239.81,8.0012434]
[1731965572470,0.34465462,239.85,239.81,8.0012434]
[1731965572958,24.12153862,239.85,239.81,8.0012434]
[1731965574244,0.21916462,239.85,239.81,8.0012434]
[1731965574448,0.21916462,239.85,239.81,12.1711434]
[1731965580255,0.21916462,239.85,239.81,8.0012434]
[1731965581037,0.21916462,239.86,239.81,8.0012434]
[1731965581239,0.21916462,239.86,239.81,12.1711434]
[1731965582330,6.53901459,239.88,239.85,8.0012434]
[1731965582526,62.32418754,239.95,239.87,8.0012434]
[1731965582527,6.53901459,239.89,239.87,8.0012434]
[1731965584434,6.53901459,239.89,239.81,10.4249]
[1731965584435,0.09367462,239.86,239.82,4.1697]
[1731965584654,0.09367462,239.86,239.85,8.0012434]
[1731965584840,23.902374,239.88,239.85,8.0012434]
[1731965585050,6.53901459,239.89,239.85,8.0012434]
[1731965585245,0.12549,239.89,239.85,8.0012434]
[1731965585944,0.12549,239.89,239.85,12.1704434]
[1731965586338,0.25098,239.9,239.85,12.1704434]
[1731965586561,0.09367462,239.89,239.85,12.1704434]
[1731965587857,0.25098,239.9,239.85,12.1704434]
[1731965588063,24.027864,239.9,239.85,22.5935434]
[1731965588268,0.09367462,239.89,239.85,22.5935434]
[1731965591459,4.26217462,239.89,239.85,8.0012434]
[1731965591672,0.09367462,239.89,239.85,12.1704434]
[1731965594454,0.09367462,239.89,239.85,22.5935434]
[1731965594855,0.09367462,239.89,239.87,8.0012434]
[1731965595150,0.09367462,239.89,239.85,22.5935434]
[1731965595673,0.09367462,239.89,239.85,10.4231]
[1731965596547,0.09367462,239.89,239.85,14.5923]
[1731965599759,0.12549,239.88,239.85,10.4231]
[1731965599970,0.09367462,239.87,239.84,8.0012434]
[1731965600950,0.09367462,239.83,239.79,8.0012434]
[1731965601844,0.09367462,239.81,239.79,8.0012434]
[1731965602650,0.09367462,239.81,239.78,4.1704]
[1731965603567,0.12549,239.85,239.79,8.0012434]
[1731965604577,0.09367462,239.84,239.8,4.1701]
[1731965606262,0.09367462,239.82,239.78,10.4262]
[1731965606468,0.09367462,239.82,239.78,18.4274434]
[1731965606878,0.09367462,239.82,239.8,8.0012434]
[1731965609177,0.09367462,239.82,239.8,12.1713434]
[1731965611756,0.09367462,239.8,239.78,14.5965]
[1731965612470,0.09367462,239.78,239.75,16.29043118]
[1731965612783,0.09367462,239.78,239.75,22.5995434]
[1731965614073,0.21916462,239.78,239.75,10.4275]
[1731965614274,0.09367462,239.76,239.75,10.4275]
[1731965615979,0.09367462,239.74,239.73,4.12415187]
[1731965616182,0.09367462,239.74,239.7,14.601]
[1731965616183,0.09367462,239.74,239.72,4.12415187]
[1731965616477,0.09367462,239.74,239.71,16.29699527]
[1731965616979,0.09367462,239.74,239.72,4.12415187]
[1731965617279,0.09367462,239.74,239.71,12.1728434]
[1731965618261,0.09367462,239.74,239.73,8.0012434]
[1731965621589,24.12153862,239.72,239.66,12.172843]
[1731965621785,24.12153862,239.72,239.66,20.1740864]
[1731965622094,24.12153862,239.72,239.68,8.0012434]
[1731965622095,0.34465462,239.72,239.68,8.0012434]
[1731965622377,0.12549,239.73,239.7,8.0012434]
[1731965622580,0.25098,239.74,239.7,8.0012434]
[1731965623165,0.09367462,239.73,239.7,8.0012434]
[1731965625176,0.09367462,239.73,239.66,10.4314]
[1731965625371,0.09367462,239.71,239.65,8.0012434]
[1731965626883,4.26537462,239.71,239.65,8.0012434]
[1731965627083,0.21916462,239.69,239.65,8.0012434]
[1731965631185,0.21916462,239.69,239.65,12.1739434]
[1731965634929,0.21916462,239.69,239.59,36.3018]
[1731965635069,0.21916462,239.69,239.65,8.0012434]
[1731965642281,0.21916462,239.69,239.62,10.4331]
[1731965642483,0.21916462,239.69,239.64,8.0012434]
[1731965643178,4.1699,239.81,239.68,8.0012434]
[1731965643376,4.1699,239.81,239.74,8.0012434]
[1731965643994,12.1711434,239.81,239.72,8.0012434]
[1731965644297,0.09367462,239.8,239.72,8.0012434]
[1731965644599,0.09367462,239.76,239.65,10.4318]
[1731965644775,0.09367462,239.76,239.68,8.0012434]
[1731965645382,0.09367462,239.72,239.68,8.0012434]
[1731965645591,0.21916462,239.72,239.68,8.0012434]
[1731965647674,0.21916462,239.72,239.68,12.1734434]
[1731965663089,27.947984,239.74,239.6,10.4338]
[1731965663090,0.12549,239.67,239.6,10.4338]
[1731965663409,0.12549,239.67,239.64,8.0012434]
[1731965664397,0.12549,239.67,239.64,12.1741434]
[1731965665007,0.12549,239.69,239.64,12.1741434]
[1731965665008,0.21916462,239.68,239.64,8.0012434]
[1731965665211,0.09367462,239.66,239.62,12.1744434]
[1731965665380,0.21916462,239.66,239.62,12.1744434]
[1731965665813,0.21916462,239.66,239.62,8.0012434]
[1731965666193,0.21916462,239.64,239.62,8.0012434]
[1731965666913,0.21916462,239.64,239.6,10.4338]
[1731965667209,0.21916462,239.62,239.58,4.1738]
[1731965667509,0.21916462,239.62,239.57,12.1753434]
[1731965669202,0.21916462,239.62,239.55,10.4358]
[1731965669385,0.21916462,239.62,239.58,8.0012434]
[1731965671710,0.21916462,239.62,239.58,12.1751434]
[1731965676715,0.21916462,239.62,239.58,4.1739]
[1731965679510,0.21916462,239.62,239.55,10.4358]
[1731965679711,0.21916462,239.62,239.57,8.0012434]
[1731965679939,0.21916462,239.6,239.47,4.23309389]
[1731965680090,23.99604862,239.53,239.46,18.4409434]
[1731965680418,0.12549,239.57,239.52,8.0012434]
[1731965680591,0.09367462,239.56,239.52,8.0012434]
[1731965681604,0.09367462,239.56,239.52,12.1761434]
[1731965682018,0.12549,239.59,239.52,22.6136434]
[1731965682224,0.09367462,239.58,239.52,14.6124]
[1731965682519,23.99604862,239.58,239.52,22.6136434]
[1731965682994,0.21916462,239.58,239.52,22.6136434]
[1731965684120,16.3977,239.67,239.61,160.0]
[1731965684309,16.3977,239.67,239.63,8.0012434]
[1731965684514,0.09367462,239.66,239.63,8.0012434]
[1731965685417,24.12153862,239.66,239.63,8.0012434]
[1731965685726,24.12153862,239.66,239.61,8.0012434]
[1731965685897,28.29413862,239.66,239.61,8.0012434]
[1731965689006,28.29413862,239.66,239.57,14.6092]
[1731965689311,28.29413862,239.66,239.6,8.0012434]
[1731965690212,28.29413862,239.66,239.62,8.0012434]
[1731965694505,28.29413862,239.66,239.57,10.4351]
[1731965694703,28.29413862,239.66,239.6,8.0012434]
[1731965694949,28.29413862,239.66,239.57,10.4351]
[1731965695128,28.29413862,239.66,239.6,8.0012434]
[1731965696730,28.29413862,239.66,239.57,18.4363434]
[1731965697428,28.29413862,239.66,239.59,8.0012434]
[1731965703917,28.29413862,239.66,239.58,4.1738]
[1731965704118,28.29413862,239.66,239.58,14.6087]
[1731965705728,28.29413862,239.66,239.59,8.0012434]
[1731965706828,28.29413862,239.66,239.61,8.0012434]
[1731965707728,24.12153862,239.66,239.61,8.0012434]
[1731965707934,6.359,239.69,239.63,8.0012434]
[1731965708224,6.359,239.69,239.65,8.0012434]
[1731965709304,0.09367462,239.68,239.63,8.0012434]
[1731965709821,23.99604862,239.68,239.63,8.0012434]
[1731965710712,23.99604862,239.68,239.63,12.1742434]
[1731965710910,0.12549,239.69,239.65,8.0012434]
[1731965712134,0.12549,239.69,239.65,12.1738434]
[1731965712932,0.25098,239.7,239.65,12.1738434]
[1731965713138,0.09367462,239.69,239.65,12.1738434]
[1731965713336,0.21916462,239.69,239.65,12.1738434]
[1731965714637,6.5763,239.75,239.67,8.0012434]
[1731965714844,6.52284019,239.77,239.73,8.0012434]
[1731965715020,25.89924019,239.79,239.73,8.0012434]
[1731965715219,0.09367462,239.78,239.73,8.0012434]
[1731965716231,24.027864,239.78,239.73,8.0012434]
[1731965716622,0.09367462,239.77,239.73,8.0012434]
[1731965718836,23.902374,239.76,239.73,8.0012434]
[1731965722050,23.776884,239.76,239.73,12.1725434]
[1731965722215,23.776884,239.76,239.75,8.0012434]
[1731965723349,23.776884,239.78,239.7,10.4296]
[1731965723518,0.21916462,239.78,239.73,8.0012434]
[1731965724542,0.09367462,239.75,239.68,8.0012434]
[1731965724723,24.12153862,239.75,239.68,8.0012434]
[1731965725121,0.34465462,239.75,239.68,8.0012434]
[1731965725338,0.34465462,239.75,239.7,8.0012434]
[1731965726052,0.21916462,239.75,239.7,8.0012434]
[1731965726642,23.776884,239.74,239.7,8.0012434]
[1731965729143,0.21916462,239.75,239.7,8.0012434]
[1731965729453,0.21916462,239.74,239.7,8.0012434]
[1731965730152,0.21916462,239.72,239.67,14.6032]
[1731965731738,0.21916462,239.72,239.68,8.0012434]
[1731965731928,24.027864,239.75,239.7,8.0012434]
[1731965732235,0.09367462,239.74,239.7,8.0012434]
[1731965735653,21.39774509,239.85,239.73,20.0]
[1731965735826,21.39774509,239.85,239.81,8.0012434]
[1731965736036,30.0,239.82,239.76,32.0049736]
[1731965736347,0.09367462,239.84,239.81,8.0012434]
[1731965736731,5.87694509,239.85,239.81,8.0012434]
[1731965737740,0.09367462,239.84,239.81,8.0012434]
[1731965738053,23.87055862,239.84,239.81,8.0012434]
[1731965744860,5.87694509,239.85,239.81,12.1711434]
[1731965745042,5.87694509,239.85,239.83,8.0012434]
[1731965745559,6.52284019,239.96,239.83,8.0012434]
[1731965745755,4.1674,239.96,239.9,8.0012434]
[1731965745935,6.3826,239.97,239.9,8.0012434]
[1731965746134,4.1669,239.99,239.92,8.0012434]
[1731965746448,4.1663,240.02,239.96,8.0012434]
[1731965746637,4.1663,240.02,239.97,8.0012434]
[1731965746839,20.4846,240.04,239.97,8.0012434]
[1731965747261,0.09367462,240.03,239.97,8.0012434]
[1731965747758,24.12153862,240.03,239.97,8.0012434]
[1731965748056,24.027864,240.03,239.97,8.0012434]
[1731965748561,0.25098,240.02,239.97,8.0012434]
[1731965749238,0.21916462,240.01,239.97,8.0012434]
[1731965749662,10.548,240.08,239.99,8.0012434]
[1731965749867,16.3186,240.09,240.03,8.0012434]
[1731965750160,0.09367462,240.08,240.03,8.0012434]
[1731965750458,4.1649,240.1,240.03,8.0012434]
[1731965750842,0.09367462,240.09,240.03,8.0012434]
[1731965751152,4.1649,240.1,240.03,8.0012434]
[1731965751540,4.1645,240.12,240.05,8.0012434]
[1731965751749,6.234,240.2,240.11,8.0012434]
[1731965751962,8.0012434,240.19,240.11,8.0012434]
[1731965752139,0.09367462,240.18,240.11,8.0012434]
[1731965752342,8.0012434,240.19,240.11,8.0012434]
[1731965752848,0.09367462,240.17,240.11,8.0012434]
[1731965753050,24.027864,240.17,240.11,8.0012434]
[1731965753649,4.1621,240.26,240.11,22.5776434]
[1731965753957,0.09367462,240.25,240.13,8.0012434]
[1731965754179,0.09367462,240.2,240.13,8.0012434]
[1731965754343,0.09367462,240.2,240.11,14.5764]
[1731965754539,0.09367462,240.2,240.12,8.0012434]
[1731965754739,4.1632,240.2,240.12,8.0012434]
[1731965755055,24.027864,240.19,240.12,8.0012434]
[1731965755560,0.09367462,240.18,240.12,8.0012434]
[1731965755764,0.21916462,240.18,240.12,12.1656434]
[1731965756759,0.21916462,240.18,240.14,8.0012434]
[1731965757142,0.21916462,240.18,240.12,8.0012434]
[1731965757343,15.4721,240.28,240.16,8.0012434]
[1731965757539,12.1633434,240.26,240.16,8.0012434]
[1731965757755,4.1621,240.26,240.18,8.0012434]
[1731965759243,8.0012434,240.31,240.22,8.0012434]
[1731965759558,4.1611,240.32,240.24,8.0012434]
[1731965759773,0.09367462,240.31,240.24,8.0012434]
[1731965760351,0.09367462,240.31,240.23,12.46602123]
[1731965760655,24.12153862,240.31,240.23,12.46602123]
[1731965760859,23.87055862,240.31,240.23,12.46602123]
[1731965761651,23.87055862,240.31,240.25,12.46602123]
[1731965762071,0.12549,240.3,240.25,12.46602123]
[1731965762361,0.25098,240.3,240.25,12.46602123]
[1731965762566,0.09367462,240.29,240.23,22.87262123]
[1731965762864,0.25098,240.28,240.21,12.46602123]
[1731965763173,0.12549,240.24,240.18,4.1634]
[1731965764742,0.09367462,240.21,240.16,12.46602123]
[1731965764942,12.55969585,240.19,240.13,4.1643]
[1731965765146,23.776884,240.18,240.13,14.5753]
[1731965766365,12.46602123,240.19,240.13,14.5753]
[1731965766561,23.902374,240.2,240.13,14.5753]
[1731965766757,23.776884,240.2,240.13,14.5753]
[1731965766966,12.46602123,240.28,240.18,12.46602123]
[1731965767147,12.46602123,240.28,240.13,14.5753]
[1731965767148,12.46602123,240.28,240.2,12.46602123]
[1731965768038,12.46602123,240.3,240.2,12.46602123]
[1731965768245,0.09367462,240.23,240.14,4.1642]
[1731965768552,23.902374,240.21,240.14,4.1642]
[1731965769770,23.902374,240.21,240.15,10.4098]
[1731965769771,0.21916462,240.2,240.15,10.4098]
[1731965769942,23.776884,240.17,240.12,4.1645]
[1731965770341,0.12549,240.16,240.1,14.5768]
[1731965770752,12.71700123,240.16,240.1,10.412]
[1731965770948,23.776884,240.15,240.1,10.412]
[1731965771272,23.776884,240.15,240.1,14.5769]
[1731965771457,4.1603,240.37,240.32,160.0]
[1731965771645,4.1603,240.37,240.12,12.46602123]
[1731965771646,30.0,240.33,240.3,12.46602123]
[1731965771842,12.46602123,240.39,240.31,4.1612]
[1731965772346,0.09367462,240.38,240.31,4.1612]
[1731965772962,24.12153862,240.38,240.31,4.1612]
[1731965773164,24.027864,240.38,240.31,4.1612]
[1731965773376,12.46602123,240.41,240.31,4.1612]
[1731965773554,19.00632123,240.43,240.34,12.46602123]
[1731965773757,19.00632123,240.43,240.31,14.5644]
[1731965773758,6.5403,240.43,240.36,12.46602123]
[1731965774573,6.5403,240.43,240.34,12.46602123]
[1731965774754,0.09367462,240.42,240.34,16.62662123]
[1731965775476,24.12153862,240.4,240.34,4.1606]
[1731965775849,24.12153862,240.4,240.32,12.46602123]
[1731965776047,12.46602123,240.37,240.31,10.4032]
[1731965776281,44.06118458,240.36,240.27,24.10144596]
[1731965778465,44.06118458,240.36,240.27,34.50634596]
[1731965781074,44.06118458,240.36,240.27,10.4049]
[1731965783766,24.12153862,240.36,240.28,19.93964596]
[1731965784560,19.93964596,240.38,240.28,19.93964596]
[1731965784760,24.09974596,240.38,240.28,19.93964596]
[1731965784966,0.09367462,240.37,240.28,19.93964596]
[1731965785174,0.09367462,240.37,240.31,19.93964596]
[1731965785373,19.93964596,240.42,240.33,19.93964596]
[1731965785555,10.6996,240.43,240.33,19.93964596]
[1731965785750,10.6996,240.43,240.35,19.93964596]
[1731965787071,10.6996,240.43,240.36,4.1604]
[1731965787072,0.09367462,240.41,240.36,4.1604]
[1731965787266,0.21916462,240.41,240.36,4.1604]
[1731965787875,0.25098,240.4,240.35,19.93964596]
[1731965788062,0.25098,240.4,240.35,24.10014596]
[1731965790063,0.21916462,240.37,240.31,19.93964596]
[1731965790261,0.12549,240.34,240.29,19.93964596]
[1731965790477,0.21916462,240.33,240.29,19.93964596]
[1731965791075,0.21916462,240.35,240.27,19.93964596]